Cogmind - Beta 13 @@@ ROGUE MODE // 2024.04.03 @ 20:58:38 Player: june Result: Destroyed by S-10 Pest with Light Assault Rifle Performance ------------- Evolutions (0) 0 Regions Visited (1) 200 Robots Destroyed (13) 65 Value Destroyed (220) 220 Prototype IDs (0) 0 Alien Tech Used (0) 0 Bonus (0) 0 TOTAL SCORE: 485 Bonus ------- None Cogmind --------- Core Integrity 0/250 Matter 300/300 Energy 97/100 System Corruption 0% Temperature Cool (0) Movement Walking (190) Ox1 Location -10/Materials Parts ------- > --- POWER (1) -------- (None) > --- PROPULSION (2) --- Aluminum Leg > --- UTILITY (2) ------ Small Storage Unit Field Recycling Unit > --- WEAPON (2) ------- Flail Flail > --- INVENTORY (8) ---- High-capacity Matter Pod (200) Seismic Detector Assault Rifle Flail Flail Peak State ------------ > --- POWER ------------ Ion Engine > --- PROPULSION ------- Aluminum Leg Aluminum Leg > --- UTILITY ---------- Small Storage Unit Field Recycling Unit > --- WEAPON ----------- Flail Flail > --- INVENTORY -------- Light Ion Engine Light Treads Light Treads Seismic Detector Medium Laser Assault Rifle Flail Flail [Rating: 11] Favorites ----------- Power Ion Engine Engine Ion Engine Propulsion Aluminum Leg Leg Aluminum Leg Utility Small Storage Unit Device Field Recycling Unit Storage Small Storage Unit Weapon Flail Energy Gun Medium Laser Ballistic Gun Assault Rifle Impact Weapon Flail Build | -11 -10 ------- Run | Yrd Mat Slots Evolved . | . . Power . | . . Propulsion . | . . Utility . | . . Weapon . | . . Parts Attached 15 | 7 8 Power 2 | 1 1 Engine 2 | 1 1 Core . | . . Reactor . | . . Propulsion 4 | 2 2 Treads . | . . Leg 4 | 2 2 Wheel . | . . Hover . | . . Flight . | . . Utility 5 | 2 3 Device 4 | 1 3 Storage 1 | 1 . Processor . | . . Hackware . | . . Protection . | . . Artifact . | . . Weapon 4 | 2 2 Energy Gun 1 | 1 . Energy Cannon . | . . Ballistic Gun 1 | 1 . Ballistic Cannon . | . . Launcher . | . . Special Weapon . | . . Impact Weapon 2 | . 2 Slashing Weapon . | . . Piercing Weapon . | . . Special Melee Weapon . | . . Unidentified Prototypes . | . . Parts Lost 4 | . 4 Power 2 | . 2 Propulsion 2 | . 2 Utility . | . . Weapon . | . . Highest Loss Streak 4 | . 4 To Critical Strikes . | . . Average Slot Usage (%) 99 | . 99 Engine 13 | . 13 Leg 27 | . 27 Device 14 | . 14 Storage 14 | . 14 Impact Weapon 27 | . 27 Naked Turns . | . . Heaviest Build 22 | 15 22 Greatest Support 20 | 20 20 Greatest Overweight (x) 1 | . 1 Average Overweight (x) . | . . Largest Inventory Capacity 8 | 8 8 Average Capacity 7 | 7 8 Most Carried 8 | 7 8 Average Carried 6 | 4 7 Final Capacity 8 | 8 8 Final Carried 7 | 7 5 Class Distribution -------------------- 100% | Mutant Dominant Class ---------------- Mutant | -10/Materials Resources | -11 -10 ----------- Run | Yrd Mat Matter Collected 431 | 294 137 Remotely . | . . Salvage Created 341 | 55 286 Parts 17 | 10 7 Haulers Intercepted . | . . Recyclers Shooed 1 | 1 . Parts Field Recycled 30 | . 30 Retrieved Matter 177 | . 177 Parts Self-Destructed . | . . Prevented . | . . Kills | -11 -10 ------- Run | Yrd Mat Combat Hostiles Destroyed 5 | . 5 Melee 3 | . 3 Classes Destroyed 6 | 1 5 Worker 2 | . 2 Tunneler 3 | 3 . Recycler 1 | . 1 Watcher 2 | . 2 Swarmer 1 | . 1 Grunt 4 | . 4 Best Kill Streak 3 | 3 3 Combat Bots Only 2 | . 2 Max Kills in Single Turn 1 | 1 1 Gunslinging . | . . Exploded . | . . Melee 1 | . 1 Uniques/NPCs Destroyed . | . . Combat | -11 -10 -------- Run | Yrd Mat Hostile Shots Fired 121 | . 121 Missed 34 | . 34 Damage Taken 786 | . 786 Core 252 | . 252 Absorbed by Shields . | . . Core Remaining (%) 100 | 100 . Volleys Fired 8 | 8 . Largest 2 | 2 . Hottest 70 | 70 . Shots Fired 16 | 16 . Gun 16 | 16 . Cannon . | . . Launcher . | . . Special . | . . Kinetic 8 | 8 . Thermal 8 | 8 . Explosive . | . . Electromagnetic . | . . Robot Hit Streak 6 | 6 . Robot Miss Streak 1 | 1 . Penetration Max . | . . Secondary Targets . | . . Shots Hit Robots 36 | 13 23 Core Hits 7 | 4 3 Critical Kills 2 | . 2 Critical Parts Destroyed 2 | . 2 Critical Strikes 4 | . 4 Smash 4 | . 4 Melee Attacks 44 | . 44 Impact 44 | . 44 Slashing . | . . Piercing . | . . Sneak Attacks 3 | . 3 Combat Hostiles . | . . Follow-up Attacks 5 | . 5 Damage Inflicted 1097 | 164 933 Guns 164 | 164 . Cannons . | . . Explosions . | . . Melee 933 | . 933 Ramming . | . . Kinetic 64 | 64 . Thermal 100 | 100 . Explosive . | . . Electromagnetic . | . . Impact 933 | . 933 Slashing . | . . Piercing . | . . Highest Corruption . | . . Average Corruption . | . . Corruption Purged . | . . Corruption Blocked . | . . Overload Shots . | . . Overflow Damage 318 | . 318 Projectiles . | . . Explosions . | . . Melee 318 | . 318 Knockbacks 4 | . 4 Impact 4 | . 4 Kinetic . | . . Secondary . | . . Self-Inflicted Damage . | . . Shots . | . . Rammed . | . . Targets Rammed . | . . Kicked . | . . Crushed . | . . Highest Temperature 63 | 63 . Average Temperature 29 | 29 . Received Heat Transfer 180 | . 180 Siege Activations . | . . Robots Corrupted . | . . Combat Hostiles . | . . Parts Fried 11 | . 11 Impact Corruptions 13 | . 13 Robots Melted . | . . Combat Hostiles . | . . Parts Melted . | . . Heat Transferred 296 | 296 . Parts Sabotaged . | . . Parts Stolen . | . . Parts Stripped . | . . Power Chain Reactions . | . . Alert | -11 -10 ------- Run | Yrd Mat Peak Influence 142 | 15 142 Initial 9 | . 9 Average 25 | 5 29 Maximum Alert Level . | . . Low Security (%) 100 | 100 100 Level 1 . | . . Level 2 . | . . Level 3 . | . . Level 4 . | . . Level 5 . | . . High Security . | . . Max Security . | . . Squads Dispatched 2 | . 2 Investigation 2 | . 2 Extermination . | . . Reinforcement . | . . Assault . | . . Garrison . | . . Intercept . | . . Searches Triggered . | . . Construction Impeded . | . . Haulers Reinforced . | . . Active Scanning Responses . | . . Cargo Convoy Interrupts . | . . Stealth | -11 -10 --------- Run | Yrd Mat Distress Signals . | . . Communications Jammed . | . . Distress Signals . | . . Times Spotted 15 | . 15 Peak Tracking Total 6 | . 6 Tactical Retreats 1 | . 1 Traps | -11 -10 ------- Run | Yrd Mat Traps Triggered 2 | . 2 Indirectly . | . . Trap Hack Attempts . | . . Triggered . | . . Disarmed . | . . Reprogrammed . | . . Reused . | . . Traps Extracted . | . . Installed . | . . Triggered . | . . Machines | -11 -10 ---------- Run | Yrd Mat Machines Disabled . | . . Max in Single Turn . | . . Machines Repaired . | . . Machines Dismantled . | . . Machines Sabotaged . | . . Overloaded Fab Kills . | . . Hacking | -11 -10 --------- Run | Yrd Mat Machines Accessed 6 | . 6 Terminals 4 | . 4 Fabricators . | . . Repair Stations . | . . Recycling Units 2 | . 2 Scanalyzers . | . . Garrison Access . | . . Total Hacks 13 | . 13 Successful 7 | . 7 Failed 6 | . 6 Catastrophic 1 | . 1 Database Lockouts . | . . Manual . | . . Terminals 10 | . 10 Fabricators . | . . Repair Stations . | . . Recycling Units 3 | . 3 Scanalyzers . | . . Garrison Access . | . . Terminal Hacks 4 | . 4 Emergency Access Points 1 | . 1 Alert Level 1 | . 1 Registered Components 1 | . 1 Zone Layout 1 | . 1 Fabricator Hacks . | . . Repair Station Hacks . | . . Recycling Unit Hacks 3 | . 3 Process 1 | . 1 Report Inventory 2 | . 2 Scanalyzer . | . . Garrison Access Hacks . | . . Unauthorized Hacks . | . . Terminals . | . . Fabricators . | . . Repair Stations . | . . Recycling Units . | . . Scanalyzers . | . . Garrison Access . | . . Data Cores Recovered . | . . Used . | . . Hacking Detections 4 | . 4 Full Trace Events . | . . Feedback Events . | . . Feedback Blocked . | . . Robot Schematics Acquired . | . . Robots Built . | . . Authchips . | . . Time . | . . Total Robot Build Rating . | . . Part Schematics Acquired . | . . Parts Built . | . . Authchips . | . . Time . | . . Total Part Build Rating . | . . Parts Repaired . | . . Time . | . . Parts Recycled . | . . Recycled Matter 3 | . 3 Retrieved Matter . | . . Retrieved Components . | . . Parts Scanalyzed . | . . Part Schematics Acquired . | . . Parts Damaged . | . . Bothacking | -11 -10 ------------ Run | Yrd Mat Used RIF Installer . | . . Robots Hacked . | . . Non-combat . | . . Combat . | . . Robot Hacks Applied . | . . Relay Couplers Released . | . . Fabnet Peak Effective % . | . . Robots Rewired . | . . Allies Hacked . | . . Hacks Repelled . | . . Allies | -11 -10 -------- Run | Yrd Mat Total Allies . | . . Largest Group . | . . Highest-Rated Group . | . . Highest-Rated Ally . | . . Total Orders . | . . Ally Attacks . | . . Total Damage . | . . Kills . | . . Allies Corrupted . | . . Allies Melted . | . . Intel | -11 -10 ------- Run | Yrd Mat Robot Analysis Total . | . . Derelict Logs Recovered . | . . Drone Launches . | . . Drone Recoveries . | . . Exploration | -11 -10 ------------- Run | Yrd Mat Turns Passed 870 | 123 747 Spaces Moved 404 | 68 336 Core 9 | 9 . Treads . | . . Legs 395 | 59 336 Wheels . | . . Hover . | . . Flight . | . . Fastest Speed 50 | 50 120 Average Speed 171 | 110 183 Slowest Speed 190 | 120 190 Overloaded Moves . | . . Propulsion Burnouts . | . . Robots Hopped . | . . Cave-ins Triggered . | . . Exploration Rate (%) 26 | 4 48 Regions Visited 1 Branch Regions . Pre-discovered Areas . | . . Known Exits Taken . | . . Unknown Exits Taken 1 | 1 . Scrap Searched . | . . Spaces Dug 3 | . 3 Terrain Destroyed 3 | . 3 Melee 3 | . 3 Projectile . | . . AOE . | . . Terrain Rammed . | . . Walls Destroyed . | . . Machines Disabled . | . . Actions | -11 -10 --------- Run | Yrd Mat Total 510 | 100 410 Wait 12 | . 12 Move 403 | 67 336 Hop . | . . Pick Up 24 | 16 8 Fast Attach . | . . Attach 9 | 7 2 Detach . | . . Swap 6 | . 6 Drop 11 | 2 9 Fire 8 | 8 . Melee 37 | . 37 Ram . | . . Kick . | . . Crush . | . . Escape Stasis . | . . Rewire . | . . Trap . | . . Miscellaneous . | . . Route ------- -11/Scrapyard -10/Materials (discovered 2 exits: [*Mat] / [*Min]) History --------- Turn | Location | Event 2 | -11/Scrapyard | Met Revision 17 4 | -11/Scrapyard | Discovered new exit (range 15) 124 | -11/Scrapyard | Entered Materials 303 | -10/Materials | Build established: Mutant 343 | -10/Materials | Discovered new exit (range 13) 763 | -10/Materials | Discovered new exit (range 5) 840 | -10/Materials | Core integrity fell below 50% 861 | -10/Materials | Core integrity fell below 20% 871 | -10/Materials | Destroyed by S-10 Pest with Light Assault Rifle Last Messages --------------- U-05 Engineer destroyed. G-34 Mercenary knocked back. Ion Engine destroyed. S-10 Pest misfires. U-05 Engineer lays Concrete. Aluminum Leg destroyed. Flail follow-up attack on S-10 Pest. S-10 Pest suffers critical hit (Smash). S-10 Pest destroyed. Field Recycling Unit collects Lgt. Assault Rifle, recycling 1 matter... U-05 Engineer lays Concrete. Aluminum Leg destroyed. S-10 Pest IFF system glitched. Flail follow-up attack on S-10 Pest. Destroyed Flight Unit. S-10 Pest system corrupted by crushing effect. S-10 Pest misfires. K-01 Serf cleans the Integration Channel. Lgt. Ion Engine destroyed. Map ----- +----------------------------------------------------+ | ?????????????????????????????????????????????????? | | ?????????????????????????????????????????????????? | | ?????????????????????????????????????????????????? | | ?????????????????????????????????????????????????? | | ?????????????????????????????????????????????????? | | ?????????????????????????????????????????????????? | | ??????########???????????????????????????????????? | | ??????# #???????????????????????????????????? | | ??????#""" #???????????????????????????????????? | | ??????#""" #####???????????????????????????????? | | ###???#""" # #???????? ??????????????????????? | | #???# # < #???????? ??????????????????????? | | #???# # #???????? ??????????????????????? | | #???####+### # = #?? #?????????????????????? | | ##### # ### ###???????????????????? | | + # # ##??????????????????? | | ##### # # ???????????????????? | | #???########% # + ???????????????????? | | #??????????# # # ????????????????????? | | #??????????# # # ????????????????????? | | ###??????????# %# ## #????????????????????? | | ###########??# # ## k#????????????????????? | | """ #??# # ## #????????????????????? | | """ "Y" #??#% # ##s #????????????????????? | | """ #??# ######## #????????????????????? | | """ #??# #??????#@ #????????????????????? | | #??# ######## ##???????????????????? | | ############?# !%| g s #???????????????????? | | ??# "T" #?# = g #???????????????????? | | ??# #?# """ % +???????????????????? | | ### """ #?# "R = """ #???????????????????? | | # """"" |#?# """ """ #???????????????????? | | + """"" #?# u""" #???????????????????? | | # """"" #?# #???????????????????? | | #+# """ #?# ???????????????????? | | # #?# k ??????????????????? | | " # #?# k ?????????????????? | | " ##########?# """ """ ?????????????????? | | " #?????????## """"""""" ?????????????????? | | #?????????# """""? ?????????????????? | | ########### ???? ?????????????????? | | # # ?????? ???????|??????????? | | # # """ ?????????????????????????? | | # # """""?????????????????????????? | | %#?????????????? ??????????????????????????????? | | #??????????????????????????????????????????????? | | #??????????????????????????????????????????????? | | ###??????????????????????????????????????????????? | | ?????????????????????????????????????????????????? | | ?????????????????????????????????????????????????? | +----------------------------------------------------+ Best States ------------- Heat Dissipation 25 Energy Generation 10 Energy Capacity 250 Matter Stores 300 Matter Capacity 300 Sight Range 16 Terrain Scan Density 10 Evasion (%) 55 Item Schematics ----------------- None Robot Schematics ------------------ None Fabricated ------------ Nothing Alien Tech Used ----------------- None Achievements -------------- None Challenges ------------ None Game ------ Seed SubatomicCobblerMegatreads Manual? 0 Play Time 00:13:46 Cumulative 6.6 hours Start 2024.04.03 @ 20:45:51 End 2024.04.03 @ 20:58:38 Sessions 1 Manual Loads 0 Difficulty Rogue Special Mode None Game No. 9 Rogue 9 Adventurer 0 Explorer 0 Win Type - Total 0 Types 0/0/0/0/0/0/0/0/0 Lore% 11 Gallery% 12 Achievement% 11 Wizard Run 0 Options --------- Layout 1 ASCII 0 Keyboard 0 Movement Mouse Keybinds 0 Fullscreen 1 Font 24/Smallcaps Map View 50x35 Zoom Use 0% Tactical HUD 0 Map Filters NONE Filters NONE Steam 1 RUN: cb794e92-dfca-4992-9e77-31a465cb6d4f